[Event "Early-Titled-Tuesday-Blitz-May-14-2024"]
[Site "Chess.com"]
[Date "2024.05.14"]
[Round "1"]
[White "edgarhay012"]
[Black "GambitGiesbergen"]
[Result "1-0"]
[WhiteElo "2640"]
[BlackElo "2315"]
[TimeControl "180+1"]
[EndTime "8:07:59 PDT"]
[Termination "edgarhay012 won by checkmate"]

1. e4 {[%clk 0:02:56.5]} 1... c5 {[%clk 0:02:59.3]} 2. Nc3 {[%clk 0:02:55.9]}
2... Nc6 {[%clk 0:02:58.8]} 3. Bb5 {[%clk 0:02:54.6]} 3... Nd4 {[%clk
0:02:58.9]} 4. Bc4 {[%clk 0:02:53.9]} 4... f5 {[%clk 0:02:59.4]} 5. d3 {[%clk
0:02:40.1]} 5... d6 {[%clk 0:02:52.7]} 6. Nge2 {[%clk 0:02:38]} 6... Nf6 {[%clk
0:02:47.4]} 7. O-O {[%clk 0:02:36.3]} 7... a6 {[%clk 0:02:26.3]} 8. a4 {[%clk
0:02:34.4]} 8... e6 {[%clk 0:02:26.1]} 9. Nxd4 {[%clk 0:02:21.3]} 9... cxd4
{[%clk 0:02:26.1]} 10. Ne2 {[%clk 0:02:21.5]} 10... e5 {[%clk 0:02:16.9]} 11.
exf5 {[%clk 0:02:13.1]} 11... Bxf5 {[%clk 0:02:14.6]} 12. Ng3 {[%clk 0:02:10.6]}
12... Bg6 {[%clk 0:02:07.3]} 13. f4 {[%clk 0:02:08.5]} 13... Be7 {[%clk
0:02:01.2]} 14. Qe2 {[%clk 0:02:03.4]} 14... Qc7 {[%clk 0:02:00.6]} 15. Bd2
{[%clk 0:01:57.1]} 15... O-O-O {[%clk 0:01:51.8]} 16. Be6+ {[%clk 0:01:53.5]}
16... Kb8 {[%clk 0:01:51.8]} 17. f5 {[%clk 0:01:53.5]} 17... Be8 {[%clk
0:01:51.4]} 18. c3 {[%clk 0:01:48]} 18... dxc3 {[%clk 0:01:45.7]} 19. bxc3
{[%clk 0:01:48.9]} 19... d5 {[%clk 0:01:39.9]} 20. Be3 {[%clk 0:01:41.8]} 20...
h5 {[%clk 0:01:32.8]} 21. Rfb1 {[%clk 0:01:38.9]} 21... h4 {[%clk 0:01:29.8]}
22. Nf1 {[%clk 0:01:33.5]} 22... Bc5 {[%clk 0:01:06.5]} 23. d4 {[%clk
0:01:30.5]} 23... exd4 {[%clk 0:01:02.3]} 24. cxd4 {[%clk 0:01:31.4]} 24... Bb6
{[%clk 0:00:51.3]} 25. a5 {[%clk 0:01:25.1]} 25... Ba7 {[%clk 0:00:44.4]} 26.
Ra2 {[%clk 0:00:52.6]} 26... Ka8 {[%clk 0:00:41.9]} 27. h3 {[%clk 0:00:47.7]}
27... Ne4 {[%clk 0:00:39.2]} 28. Rc2 {[%clk 0:00:40]} 28... Bc6 {[%clk
0:00:36.6]} 29. Rbc1 {[%clk 0:00:36.1]} 29... Qd6 {[%clk 0:00:33.1]} 30. Rxc6
{[%clk 0:00:28.5]} 30... bxc6 {[%clk 0:00:33.7]} 31. Qxa6 {[%clk 0:00:28.7]}
31... c5 {[%clk 0:00:13.1]} 32. Qxd6 {[%clk 0:00:23.8]} 32... Rxd6 {[%clk
0:00:14]} 33. dxc5 {[%clk 0:00:23.8]} 33... Rdd8 {[%clk 0:00:09.1]} 34. Bd4
{[%clk 0:00:20.9]} 34... Rc8 {[%clk 0:00:03.1]} 35. Bxd5+ {[%clk 0:00:20.3]}
35... Kb8 {[%clk 0:00:03.1]} 36. Be5+ {[%clk 0:00:20.3]} 36... Rc7 {[%clk
0:00:03.4]} 37. Bxe4 {[%clk 0:00:20.1]} 37... Re8 {[%clk 0:00:02.9]} 38. Bxc7+
{[%clk 0:00:19.7]} 38... Kxc7 {[%clk 0:00:03.8]} 39. Bf3 {[%clk 0:00:19.8]}
39... Re5 {[%clk 0:00:03.8]} 40. Nh2 {[%clk 0:00:18]} 40... Bxc5+ {[%clk
0:00:03.1]} 41. Kf1 {[%clk 0:00:18.4]} 41... Rxf5 {[%clk 0:00:02.2]} 42. Ng4
{[%clk 0:00:18.4]} 42... Kb8 {[%clk 0:00:02.7]} 43. a6 {[%clk 0:00:18.4]} 43...
Ka7 {[%clk 0:00:03.1]} 44. Nf2 {[%clk 0:00:18.3]} 44... Kxa6 {[%clk 0:00:03]}
45. Nd3 {[%clk 0:00:18.8]} 45... Bb6 {[%clk 0:00:03.4]} 46. Ra1+ {[%clk
0:00:18.5]} 46... Kb5 {[%clk 0:00:03.8]} 47. Rb1+ {[%clk 0:00:17.5]} 47... Ka6
{[%clk 0:00:03.5]} 48. Nb4+ {[%clk 0:00:16.9]} 48... Ka5 {[%clk 0:00:03.3]} 49.
Nc6+ {[%clk 0:00:17.1]} 49... Ka6 {[%clk 0:00:04]} 50. Ne7 {[%clk 0:00:13.5]}
50... Ra5 {[%clk 0:00:01.8]} 51. Nd5 {[%clk 0:00:13.6]} 51... Bc5 {[%clk
0:00:01.7]} 52. Be2+ {[%clk 0:00:13.8]} 52... Ka7 {[%clk 0:00:01.5]} 53. Nc7
{[%clk 0:00:13.4]} 53... Bd4 {[%clk 0:00:00.6]} 54. Nb5+ {[%clk 0:00:14.3]}
54... Ka8 {[%clk 0:00:00.3]} 55. Nxd4 {[%clk 0:00:15.2]} 55... Ka7 {[%clk
0:00:00.6]} 56. Nc6+ {[%clk 0:00:15.3]} 56... Ka8 {[%clk 0:00:00.8]} 57. Rb8#
{[%clk 0:00:15.8]} 1-0

[Event "Early-Titled-Tuesday-Blitz-May-14-2024"]
[Site "Chess.com"]
[Date "2024.05.14"]
[Round "1"]
[White "Timerkhanov"]
[Black "Arimin1329"]
[Result "1-0"]
[WhiteElo "2706"]
[BlackElo "2384"]
[TimeControl "180+1"]
[EndTime "8:08:03 PDT"]
[Termination "Timerkhanov won by resignation"]

1. d4 {[%clk 0:03:00.9]} 1... Nf6 {[%clk 0:02:58.6]} 2. Bg5 {[%clk 0:03:00.9]}
2... e6 {[%clk 0:02:52.8]} 3. Nd2 {[%clk 0:03:00.8]} 3... d5 {[%clk 0:02:52.3]}
4. e3 {[%clk 0:03:01]} 4... Be7 {[%clk 0:02:51.6]} 5. Bd3 {[%clk 0:03:01.3]}
5... b6 {[%clk 0:02:51.9]} 6. Ngf3 {[%clk 0:03:00.9]} 6... Nbd7 {[%clk
0:02:52.3]} 7. c3 {[%clk 0:02:49.3]} 7... Bb7 {[%clk 0:02:52.3]} 8. Qb1 {[%clk
0:02:47.7]} 8... h6 {[%clk 0:02:50.7]} 9. Bh4 {[%clk 0:02:47.2]} 9... c5 {[%clk
0:02:50.9]} 10. O-O {[%clk 0:02:46.8]} 10... O-O {[%clk 0:02:47.9]} 11. a4
{[%clk 0:02:46.5]} 11... Qc7 {[%clk 0:02:46.6]} 12. e4 {[%clk 0:02:42.1]} 12...
dxe4 {[%clk 0:02:45.1]} 13. Nxe4 {[%clk 0:02:41.8]} 13... cxd4 {[%clk
0:02:43.1]} 14. Nxd4 {[%clk 0:02:42.3]} 14... a6 {[%clk 0:02:38.4]} 15. Bg3
{[%clk 0:02:39.3]} 15... Qd8 {[%clk 0:02:31.5]} 16. Nd6 {[%clk 0:02:31.3]} 16...
Bd5 {[%clk 0:02:17.2]} 17. c4 {[%clk 0:02:27.4]} 17... Nc5 {[%clk 0:02:17.2]}
18. Nxf7 {[%clk 0:01:35.6]} 18... Rxf7 {[%clk 0:02:05.6]} 19. cxd5 {[%clk
0:01:35.8]} 19... Qxd5 {[%clk 0:01:35.3]} 20. Rd1 {[%clk 0:01:35.2]} 20... Nxd3
{[%clk 0:01:21.9]} 21. Qxd3 {[%clk 0:01:32.3]} 21... Bc5 {[%clk 0:01:13.7]} 22.
Nf3 {[%clk 0:01:05.9]} 22... Qxd3 {[%clk 0:01:09]} 23. Rxd3 {[%clk 0:01:06.8]}
23... Ne4 {[%clk 0:01:06.5]} 24. Re1 {[%clk 0:01:07.5]} 24... Nxg3 {[%clk
0:00:58.3]} 25. hxg3 {[%clk 0:00:49.1]} 25... Rf6 {[%clk 0:00:58.7]} 26. Re2
{[%clk 0:00:49.3]} 26... Raf8 {[%clk 0:00:58.6]} 27. Re4 {[%clk 0:00:45.7]}
27... R8f7 {[%clk 0:00:49.4]} 28. b4 {[%clk 0:00:45.4]} 28... Bf8 {[%clk
0:00:46.5]} 29. Ne5 {[%clk 0:00:45.2]} 29... Rc7 {[%clk 0:00:39.8]} 30. f4
{[%clk 0:00:42.5]} 30... g5 {[%clk 0:00:28.5]} 31. Rd8 {[%clk 0:00:42]} 31...
gxf4 {[%clk 0:00:23.3]} 32. gxf4 {[%clk 0:00:42.9]} 32... Kg7 {[%clk 0:00:20.4]}
33. g3 {[%clk 0:00:37.1]} 33... Be7 {[%clk 0:00:14.5]} 34. Rd7 {[%clk
0:00:37.3]} 34... Rxd7 {[%clk 0:00:14]} 35. Nxd7 {[%clk 0:00:38.2]} 35... Rf7
{[%clk 0:00:14.1]} 36. Nxb6 {[%clk 0:00:37.8]} 36... Bf6 {[%clk 0:00:12.5]} 37.
Nc4 {[%clk 0:00:37.6]} 37... Rc7 {[%clk 0:00:12.2]} 38. b5 {[%clk 0:00:36.6]}
38... axb5 {[%clk 0:00:12.4]} 39. axb5 {[%clk 0:00:37.5]} 39... Bd8 {[%clk
0:00:12.4]} 40. Kg2 {[%clk 0:00:36.2]} 40... Rb7 {[%clk 0:00:12.3]} 41. Nd6
{[%clk 0:00:35.6]} 41... Rd7 {[%clk 0:00:11.6]} 42. Rxe6 {[%clk 0:00:35]} 42...
Bc7 {[%clk 0:00:11.6]} 43. Ne8+ {[%clk 0:00:35.4]} 43... Kf7 {[%clk 0:00:11.3]}
44. Nxc7 {[%clk 0:00:36.3]} 44... Rxc7 {[%clk 0:00:11.8]} 45. Rxh6 {[%clk
0:00:36.9]} 45... Rc2+ {[%clk 0:00:11.4]} 46. Kf3 {[%clk 0:00:36]} 46... Rc1
{[%clk 0:00:12.3]} 47. b6 {[%clk 0:00:35.1]} 47... Rb1 {[%clk 0:00:12.8]} 48.
Rh7+ {[%clk 0:00:33.2]} 48... Kg6 {[%clk 0:00:12.8]} 49. Rb7 {[%clk 0:00:32.5]}
49... Kf6 {[%clk 0:00:13.2]} 50. Kg4 {[%clk 0:00:32.9]} 50... Kg6 {[%clk
0:00:13.3]} 51. Rb8 {[%clk 0:00:32.2]} 51... Kf6 {[%clk 0:00:13]} 52. Rh8 {[%clk
0:00:32.7]} 52... Kg7 {[%clk 0:00:13.1]} 53. Rb8 {[%clk 0:00:32]} 53... Kf6
{[%clk 0:00:13.1]} 54. Rh8 {[%clk 0:00:25.6]} 54... Kg7 {[%clk 0:00:13]} 55. Re8
{[%clk 0:00:25.3]} 55... Rxb6 {[%clk 0:00:12.4]} 56. Kg5 {[%clk 0:00:25.7]}
56... Rb3 {[%clk 0:00:11.6]} 57. g4 {[%clk 0:00:25.7]} 57... Rb5+ {[%clk
0:00:12]} 58. f5 {[%clk 0:00:26]} 58... Rb6 {[%clk 0:00:12.5]} 59. Re7+ {[%clk
0:00:26.3]} 59... Kf8 {[%clk 0:00:12.4]} 60. Ra7 {[%clk 0:00:26.9]} 60... Rb2
{[%clk 0:00:11.2]} 61. f6 {[%clk 0:00:27]} 61... Rb5+ {[%clk 0:00:10.7]} 62. Kg6
{[%clk 0:00:27.3]} 62... Rb8 {[%clk 0:00:11.6]} 63. Rh7 {[%clk 0:00:25.4]} 63...
Kg8 {[%clk 0:00:11.6]} 64. f7+ {[%clk 0:00:25.8]} 64... Kf8 {[%clk 0:00:12]} 65.
Rh8+ {[%clk 0:00:26.7]} 65... Ke7 {[%clk 0:00:12.3]} 66. Rxb8 {[%clk 0:00:27.6]}
1-0

[Event "Early-Titled-Tuesday-Blitz-May-14-2024"]
[Site "Chess.com"]
[Date "2024.05.14"]
[Round "1"]
[White "Moon_stone123"]
[Black "ernestina08chess"]
[Result "1-0"]
[WhiteElo "2620"]
[BlackElo "2295"]
[TimeControl "180+1"]
[EndTime "8:08:05 PDT"]
[Termination "Moon_stone123 won by checkmate"]

1. d4 {[%clk 0:02:59.2]} 1... Nf6 {[%clk 0:02:56.1]} 2. Nf3 {[%clk 0:02:57.4]}
2... d5 {[%clk 0:02:55.7]} 3. c4 {[%clk 0:02:55.6]} 3... e6 {[%clk 0:02:54.1]}
4. Nc3 {[%clk 0:02:55]} 4... c6 {[%clk 0:02:51.1]} 5. Bg5 {[%clk 0:02:51.6]}
5... Be7 {[%clk 0:02:50.7]} 6. e3 {[%clk 0:02:50.6]} 6... Nbd7 {[%clk
0:02:49.5]} 7. Bd3 {[%clk 0:02:49.4]} 7... h6 {[%clk 0:02:49]} 8. Bh4 {[%clk
0:02:48.5]} 8... O-O {[%clk 0:02:48.3]} 9. O-O {[%clk 0:02:48]} 9... a6 {[%clk
0:02:46.9]} 10. Rc1 {[%clk 0:02:44]} 10... b5 {[%clk 0:02:45.9]} 11. cxd5 {[%clk
0:02:43.9]} 11... cxd5 {[%clk 0:02:45.4]} 12. Ne2 {[%clk 0:02:13.5]} 12... Bb7
{[%clk 0:02:43]} 13. h3 {[%clk 0:02:12.9]} 13... Nb6 {[%clk 0:02:41.2]} 14. Bg3
{[%clk 0:02:04.2]} 14... Nc4 {[%clk 0:02:35.9]} 15. Qc2 {[%clk 0:01:59.2]} 15...
Rc8 {[%clk 0:02:26.9]} 16. Qb1 {[%clk 0:01:59.4]} 16... Ne4 {[%clk 0:02:22.8]}
17. Bh2 {[%clk 0:01:53.2]} 17... Ncd2 {[%clk 0:02:20.3]} 18. Nxd2 {[%clk
0:01:50.6]} 18... Nxd2 {[%clk 0:02:21.2]} 19. Qa1 {[%clk 0:01:50.7]} 19... Nxf1
{[%clk 0:02:20.1]} 20. Rxf1 {[%clk 0:01:50.5]} 20... Bd6 {[%clk 0:02:20.3]} 21.
Nf4 {[%clk 0:01:49.7]} 21... g5 {[%clk 0:02:19.4]} 22. Nh5 {[%clk 0:01:49.3]}
22... Bxh2+ {[%clk 0:02:18.3]} 23. Kxh2 {[%clk 0:01:50.2]} 23... f5 {[%clk
0:02:04.9]} 24. Qd1 {[%clk 0:01:46.5]} 24... Qe8 {[%clk 0:02:00.6]} 25. f4
{[%clk 0:01:43.3]} 25... a5 {[%clk 0:01:33.9]} 26. Qf3 {[%clk 0:01:38.6]} 26...
b4 {[%clk 0:01:27.1]} 27. g4 {[%clk 0:01:30.4]} 27... Rc6 {[%clk 0:01:05.5]} 28.
gxf5 {[%clk 0:01:27.9]} 28... exf5 {[%clk 0:01:06.4]} 29. Rg1 {[%clk 0:01:19.4]}
29... Rg6 {[%clk 0:01:04.9]} 30. fxg5 {[%clk 0:01:11.6]} 30... hxg5 {[%clk
0:01:05.8]} 31. Ng3 {[%clk 0:01:11.5]} 31... Bc8 {[%clk 0:00:47.3]} 32. Qxd5+
{[%clk 0:01:03.8]} 32... Be6 {[%clk 0:00:47.6]} 33. Qe5 {[%clk 0:01:01.7]} 33...
Rgf6 {[%clk 0:00:42.5]} 34. Ne2 {[%clk 0:00:43.6]} 34... Rg6 {[%clk 0:00:27.2]}
35. Ng3 {[%clk 0:00:43.8]} 35... Rgf6 {[%clk 0:00:26.9]} 36. Ne2 {[%clk
0:00:44.3]} 36... Rg6 {[%clk 0:00:26.8]} 37. Qxa5 {[%clk 0:00:44.2]} 37... b3
{[%clk 0:00:24.2]} 38. axb3 {[%clk 0:00:38.9]} 38... Bxb3 {[%clk 0:00:25.1]} 39.
Rg3 {[%clk 0:00:31.6]} 39... Rg7 {[%clk 0:00:21]} 40. Qb6 {[%clk 0:00:29.5]}
40... Bd5 {[%clk 0:00:19.4]} 41. Qd6 {[%clk 0:00:28.6]} 41... Be4 {[%clk
0:00:19]} 42. Bc4+ {[%clk 0:00:27.9]} 42... Kh7 {[%clk 0:00:18.4]} 43. Nc3
{[%clk 0:00:28.3]} 43... f4 {[%clk 0:00:18.1]} 44. exf4 {[%clk 0:00:26]} 44...
Rxf4 {[%clk 0:00:14.8]} 45. Kg1 {[%clk 0:00:15.1]} 45... Rgf7 {[%clk 0:00:11.7]}
46. Bxf7 {[%clk 0:00:14.4]} 46... Qxf7 {[%clk 0:00:11.2]} 47. Nxe4 {[%clk
0:00:14.8]} 47... Rxe4 {[%clk 0:00:10.9]} 48. Rxg5 {[%clk 0:00:14.4]} 48... Re1+
{[%clk 0:00:10.7]} 49. Kh2 {[%clk 0:00:14.2]} 49... Qf2+ {[%clk 0:00:07.5]} 50.
Rg2 {[%clk 0:00:14.9]} 50... Qf1 {[%clk 0:00:08.4]} 51. Qg6+ {[%clk 0:00:14.1]}
51... Kh8 {[%clk 0:00:08.1]} 52. Qg7# {[%clk 0:00:15]} 1-0

[Event "Early-Titled-Tuesday-Blitz-May-14-2024"]
[Site "Chess.com"]
[Date "2024.05.14"]
[Round "1"]
[White "sergiochess83"]
[Black "kuchma777"]
[Result "1-0"]
[WhiteElo "2875"]
[BlackElo "2509"]
[TimeControl "180+1"]
[EndTime "8:08:06 PDT"]
[Termination "sergiochess83 won by resignation"]

1. d4 {[%clk 0:02:49.9]} 1... Nf6 {[%clk 0:02:59.8]} 2. c4 {[%clk 0:02:49.3]}
2... e6 {[%clk 0:02:59.1]} 3. g3 {[%clk 0:02:48]} 3... d5 {[%clk 0:02:58.7]} 4.
Bg2 {[%clk 0:02:46.8]} 4... dxc4 {[%clk 0:02:59.1]} 5. Nf3 {[%clk 0:02:45.2]}
5... c5 {[%clk 0:02:57]} 6. O-O {[%clk 0:02:33.9]} 6... Be7 {[%clk 0:02:53]} 7.
dxc5 {[%clk 0:02:03.9]} 7... Nbd7 {[%clk 0:02:31.5]} 8. Qa4 {[%clk 0:01:46.4]}
8... O-O {[%clk 0:02:23.7]} 9. Qxc4 {[%clk 0:01:44.1]} 9... Bxc5 {[%clk
0:02:03.9]} 10. Nc3 {[%clk 0:01:39.6]} 10... a6 {[%clk 0:01:10.1]} 11. Qd3
{[%clk 0:01:16.6]} 11... Qe7 {[%clk 0:01:06.2]} 12. Bf4 {[%clk 0:01:09.6]} 12...
e5 {[%clk 0:01:01.6]} 13. Bg5 {[%clk 0:01:08.1]} 13... e4 {[%clk 0:00:58.3]} 14.
Qc2 {[%clk 0:00:40.7]} 14... exf3 {[%clk 0:00:57.3]} 15. Bxf3 {[%clk 0:00:41.6]}
15... Qe6 {[%clk 0:00:43]} 16. Rad1 {[%clk 0:00:36.5]} 16... h6 {[%clk
0:00:35.5]} 17. Bf4 {[%clk 0:00:22.8]} 17... Ne5 {[%clk 0:00:35.6]} 18. Bd5
{[%clk 0:00:20.6]} 18... Qe7 {[%clk 0:00:31.9]} 19. Bb3 {[%clk 0:00:19.9]} 19...
Ng6 {[%clk 0:00:30.6]} 20. Qxg6 {[%clk 0:00:19]} 20... Bh3 {[%clk 0:00:25.6]}
21. Bxh6 {[%clk 0:00:16]} 21... Ne8 {[%clk 0:00:18.5]} 22. Bg5 {[%clk 0:00:09]}
22... Qc7 {[%clk 0:00:18]} 23. Nd5 {[%clk 0:00:05.3]} 23... Qc6 {[%clk
0:00:08.4]} 24. Qxc6 {[%clk 0:00:04.6]} 24... bxc6 {[%clk 0:00:09.3]} 25. Ne7+
{[%clk 0:00:05.3]} 25... Kh7 {[%clk 0:00:09.1]} 26. Rfe1 {[%clk 0:00:03.7]}
26... f6 {[%clk 0:00:09.5]} 27. Bc2+ {[%clk 0:00:03.1]} 27... f5 {[%clk
0:00:07.1]} 28. Nxc6 {[%clk 0:00:03.3]} 28... Rc8 {[%clk 0:00:06.5]} 29. Ne5
{[%clk 0:00:03.3]} 29... Bxf2+ {[%clk 0:00:06.3]} 30. Kxf2 {[%clk 0:00:04.2]}
30... Rxc2 {[%clk 0:00:07.2]} 31. Nd3 {[%clk 0:00:04.5]} 31... Nd6 {[%clk
0:00:06.6]} 32. Bf4 {[%clk 0:00:04]} 32... Ne4+ {[%clk 0:00:06.9]} 33. Kg1
{[%clk 0:00:04.7]} 33... Rfc8 {[%clk 0:00:06.9]} 34. Rc1 {[%clk 0:00:05.1]}
34... Bg4 {[%clk 0:00:06.6]} 35. Nf2 {[%clk 0:00:03.4]} 35... Bxe2 {[%clk
0:00:05.5]} 36. Nxe4 {[%clk 0:00:02.9]} 36... fxe4 {[%clk 0:00:04.8]} 37. Rxe2
{[%clk 0:00:03.3]} 37... Rxc1+ {[%clk 0:00:04.9]} 38. Bxc1 {[%clk 0:00:04.2]}
38... Rxc1+ {[%clk 0:00:05]} 39. Kf2 {[%clk 0:00:05.1]} 39... Rc4 {[%clk
0:00:05.2]} 40. Ke3 {[%clk 0:00:05.4]} 40... Kg6 {[%clk 0:00:05.4]} 41. Kf4
{[%clk 0:00:05.6]} 41... Rb4 {[%clk 0:00:04.5]} 42. b3 {[%clk 0:00:05.3]} 42...
Rd4 {[%clk 0:00:04.3]} 43. Rxe4 {[%clk 0:00:05.6]} 43... Rd2 {[%clk 0:00:04.2]}
44. Re6+ {[%clk 0:00:05.7]} 44... Kh5 {[%clk 0:00:04.9]} 45. Rxa6 {[%clk
0:00:06.3]} 45... Rxh2 {[%clk 0:00:04.9]} 46. a4 {[%clk 0:00:06.2]} 46... Rf2+
{[%clk 0:00:03.9]} 47. Ke3 {[%clk 0:00:06.3]} 47... Rb2 {[%clk 0:00:04.5]} 48.
Rb6 {[%clk 0:00:06.2]} 48... g5 {[%clk 0:00:04.8]} 49. a5 {[%clk 0:00:06.4]}
49... Kg4 {[%clk 0:00:05.5]} 50. Rb5 {[%clk 0:00:05.8]} 50... Rg2 {[%clk
0:00:04.2]} 51. a6 {[%clk 0:00:05.7]} 51... Rxg3+ {[%clk 0:00:04.7]} 52. Kd4
{[%clk 0:00:06.2]} 52... Rg1 {[%clk 0:00:05.1]} 53. Ra5 {[%clk 0:00:06.5]} 53...
Rd1+ {[%clk 0:00:04.7]} 54. Ke5 {[%clk 0:00:06.9]} 54... Kf3 {[%clk 0:00:04.4]}
55. a7 {[%clk 0:00:07.1]} 55... Rd8 {[%clk 0:00:04.8]} 56. a8=Q+ {[%clk
0:00:07.2]} 1-0

[Event "Early-Titled-Tuesday-Blitz-May-14-2024"]
[Site "Chess.com"]
[Date "2024.05.14"]
[Round "1"]
[White "laboratorio25"]
[Black "frederiksvane"]
[Result "0-1"]
[WhiteElo "2532"]
[BlackElo "2969"]
[TimeControl "180+1"]
[EndTime "8:08:07 PDT"]
[Termination "frederiksvane won by resignation"]

1. e4 {[%clk 0:02:59.6]} 1... e6 {[%clk 0:03:00.1]} 2. d4 {[%clk 0:02:58.7]}
2... d5 {[%clk 0:02:59.9]} 3. e5 {[%clk 0:02:59.4]} 3... c5 {[%clk 0:03:00.1]}
4. c3 {[%clk 0:02:59.9]} 4... Nc6 {[%clk 0:03:00.7]} 5. Nf3 {[%clk 0:03:00.5]}
5... Bd7 {[%clk 0:03:01.2]} 6. Na3 {[%clk 0:02:59.4]} 6... Nge7 {[%clk
0:03:00.1]} 7. Nc2 {[%clk 0:02:58.2]} 7... Qa5 {[%clk 0:02:54.1]} 8. Bd2 {[%clk
0:02:37]} 8... Qb6 {[%clk 0:02:52.5]} 9. b4 {[%clk 0:02:35.1]} 9... cxd4 {[%clk
0:02:49]} 10. Ncxd4 {[%clk 0:02:30.3]} 10... Nxd4 {[%clk 0:02:48.4]} 11. cxd4
{[%clk 0:02:29.5]} 11... Nf5 {[%clk 0:02:41.3]} 12. a3 {[%clk 0:02:12.8]} 12...
Nxd4 {[%clk 0:02:37.9]} 13. Bd3 {[%clk 0:02:11.1]} 13... Be7 {[%clk 0:02:18.5]}
14. O-O {[%clk 0:02:09.1]} 14... Nxf3+ {[%clk 0:02:18.3]} 15. Qxf3 {[%clk
0:02:10]} 15... Bb5 {[%clk 0:02:07.3]} 16. Be3 {[%clk 0:01:58.9]} 16... Qa6
{[%clk 0:02:07.6]} 17. Bxb5+ {[%clk 0:01:54.7]} 17... Qxb5 {[%clk 0:02:08.5]}
18. Qg3 {[%clk 0:01:52.7]} 18... g6 {[%clk 0:02:03.7]} 19. Bh6 {[%clk
0:01:49.3]} 19... Rc8 {[%clk 0:01:53.9]} 20. Rac1 {[%clk 0:01:48.1]} 20... Rc4
{[%clk 0:01:28]} 21. Qe3 {[%clk 0:01:30.4]} 21... b6 {[%clk 0:01:18.9]} 22. Rxc4
{[%clk 0:01:29.8]} 22... dxc4 {[%clk 0:01:15.1]} 23. Rd1 {[%clk 0:01:15.1]}
23... Qc6 {[%clk 0:01:14.8]} 24. b5 {[%clk 0:01:10.7]} 24... Qc8 {[%clk
0:01:13.9]} 25. Rc1 {[%clk 0:01:07.3]} 25... Bf8 {[%clk 0:01:10.8]} 26. Bg5
{[%clk 0:01:03.1]} 26... Bg7 {[%clk 0:01:07]} 27. Bf6 {[%clk 0:00:55.9]} 27...
O-O {[%clk 0:01:05]} 28. h4 {[%clk 0:00:55.5]} 28... Qd7 {[%clk 0:00:54.8]} 29.
Rxc4 {[%clk 0:00:41.9]} 29... Qxb5 {[%clk 0:00:51.1]} 30. Rc7 {[%clk 0:00:41.2]}
30... a5 {[%clk 0:00:51.5]} 31. h5 {[%clk 0:00:40]} 31... Qb1+ {[%clk
0:00:47.6]} 32. Rc1 {[%clk 0:00:36.8]} 32... Qf5 {[%clk 0:00:38.4]} 33. Bxg7
{[%clk 0:00:36.7]} 33... Kxg7 {[%clk 0:00:39.3]} 34. h6+ {[%clk 0:00:36.7]}
34... Kg8 {[%clk 0:00:39.9]} 35. a4 {[%clk 0:00:33.3]} 35... g5 {[%clk
0:00:22.2]} 36. Rc4 {[%clk 0:00:29.6]} 36... Kh8 {[%clk 0:00:05]} 37. f3 {[%clk
0:00:23.7]} 37... Qg6 {[%clk 0:00:05.3]} 38. Rg4 {[%clk 0:00:20.6]} 38... Rg8
{[%clk 0:00:05.6]} 39. Qxb6 {[%clk 0:00:19.4]} 39... Qxh6 {[%clk 0:00:05.8]} 40.
Qxa5 {[%clk 0:00:18.9]} 40... Qg6 {[%clk 0:00:06.4]} 41. Qb5 {[%clk 0:00:18]}
41... Rd8 {[%clk 0:00:06.4]} 42. Qe2 {[%clk 0:00:13.3]} 42... h6 {[%clk
0:00:06.2]} 43. Re4 {[%clk 0:00:10.8]} 43... Qg8 {[%clk 0:00:04.2]} 44. a5
{[%clk 0:00:10.7]} 44... Ra8 {[%clk 0:00:04.6]} 45. a6 {[%clk 0:00:07.1]} 45...
Qc8 {[%clk 0:00:05.1]} 46. Kh2 {[%clk 0:00:05.9]} 46... Rxa6 {[%clk 0:00:04.3]}
47. Rc4 {[%clk 0:00:05]} 47... Qb7 {[%clk 0:00:04.4]} 48. Qc2 {[%clk 0:00:04.3]}
48... Ra8 {[%clk 0:00:04.3]} 49. Rc7 {[%clk 0:00:04.4]} 49... Qb5 {[%clk
0:00:04.4]} 50. Rxf7 {[%clk 0:00:04.6]} 50... Qxe5+ {[%clk 0:00:04.9]} 51. Kh1
{[%clk 0:00:04.3]} 51... Ra1+ {[%clk 0:00:03.9]} 0-1